fUST/lending_fUST_20240530
["ID","MTS","AMOUNT","RATE_DAILY","PERIOD"]
[328179761,1717014632196,-461.41671968,0.00025,2]
[328179762,1717014632205,-22874.93521161,0.00025,2]
[328179763,1717014632214,-233.2797648,0.000256,2]
[328179764,1717014632223,-571.85073768,0.00025768,2]
[328179765,1717014632235,-262.88155129,0.00025768,2]
[328179766,1717014632245,-3632.32715464,0.0002577,2]
[328179850,1717014638023,-1029.5663358,0.0002577,2]
[328180080,1717014640944,-608.09548811,0.0002577,2]
[328180083,1717014640957,-19630.01102145,0.0002577,2]
[328180085,1717014640967,-173.721763,0.00025963,2]
[328180087,1717014640977,-150.0,0.000265,2]
[328180089,1717014640987,-414.04987744,0.00026574,2]
[328180091,1717014640997,-761.53155768,0.000266,2]
[328180093,1717014641006,-497.0,0.00026747,2]
[328180095,1717014641016,-152.41609311,0.00026762,2]
[328180113,1717014641188,-319.7368961,0.00026877,2]
[328180115,1717014641198,-519.05141022,0.00026916,2]
[328180117,1717014641208,-170.54778907,0.00026916,2]
[328180119,1717014641217,-500.0,0.00026916,2]
[328180121,1717014641227,-500.0,0.00026916,2]
[328180123,1717014641236,-342.82324904,0.00026916,2]
[328180301,1717014645821,-157.17675096,0.00026916,2]
[328180302,1717014645831,-500.0,0.00026916,2]
[328180303,1717014645840,-500.0,0.00026916,2]
[328180304,1717014645849,-500.0,0.00026916,2]
[328180305,1717014645859,-500.0,0.00026916,2]
[328180306,1717014645868,-500.0,0.00026916,2]
[328180307,1717014645877,-500.0,0.00026916,2]
[328180308,1717014645886,-452.64859305,0.00026916,2]
[328180309,1717014645895,-500.0,0.00026916,2]
[328180310,1717014645904,-500.0,0.00026916,2]
[328180311,1717014645914,-500.0,0.00026916,2]
[328180312,1717014645924,-500.0,0.00026916,2]
[328180313,1717014645933,-500.0,0.00026916,2]
[328180314,1717014645942,-500.0,0.00026916,2]
[328180315,1717014645951,-500.0,0.00026916,2]
[328180316,1717014645960,-600.0,0.00026916,2]
[328180317,1717014645970,-500.0,0.00026916,2]
[328180318,1717014645979,-245.28193108,0.00026916,2]
[328180319,1717014645988,-500.0,0.00026916,2]
[328180320,1717014645997,-500.0,0.00026916,2]
[328180321,1717014646006,-500.0,0.00026916,2]
[328180322,1717014646018,-500.0,0.00026916,2]
[328180323,1717014646027,-500.0,0.00026916,2]
[328180324,1717014646036,-500.0,0.00026916,2]
[328180325,1717014646046,-500.0,0.00026916,2]
[328180326,1717014646062,-500.0,0.00026916,2]
[328180327,1717014646071,-500.0,0.00026916,2]
[328180328,1717014646080,-500.0,0.00026916,2]
[328180329,1717014646089,-500.0,0.00026916,2]
[328180330,1717014646099,-500.0,0.00026916,2]
[328180331,1717014646109,-500.0,0.00026916,2]
[328180332,1717014646118,-500.0,0.00026916,2]
[328180333,1717014646127,-500.0,0.00026916,2]
[328180334,1717014646138,-299.82492349,0.00026916,2]
[328180335,1717014646148,-500.0,0.00026916,2]
[328180336,1717014646158,-500.0,0.00026916,2]
[328180337,1717014646167,-500.0,0.00026916,2]
[328180338,1717014646177,-500.0,0.00026916,2]
[328180339,1717014646187,-500.0,0.00026916,2]
[328180340,1717014646196,-500.0,0.00026916,2]
[328180341,1717014646205,-500.0,0.00026916,2]
[328180342,1717014646215,-500.0,0.00026916,2]
[328180343,1717014646224,-500.0,0.00026916,2]
[328180344,1717014646234,-500.0,0.00026916,2]
[328180345,1717014646243,-500.0,0.00026916,2]
[328180346,1717014646252,-500.0,0.00026916,2]
[328180347,1717014646262,-500.0,0.00026916,2]
[328180348,1717014646271,-500.0,0.00026916,2]
[328180349,1717014646280,-500.0,0.00026916,2]
[328180350,1717014646290,-500.0,0.00026916,2]
[328180351,1717014646299,-500.0,0.00026916,2]
[328180352,1717014646308,-500.0,0.00026916,2]
[328180353,1717014646317,-500.0,0.00026916,2]
[328180354,1717014646326,-500.0,0.00026916,2]
[328180355,1717014646336,-500.0,0.00026916,2]
[328180356,1717014646345,-500.0,0.00026916,2]
[328180357,1717014646356,-500.0,0.00026916,2]
[328180358,1717014646366,-500.0,0.00026916,2]
[328180359,1717014646375,-500.0,0.00026916,2]
[328180360,1717014646385,-500.0,0.00026916,2]
[328180361,1717014646394,-500.0,0.00026916,2]
[328180362,1717014646403,-500.0,0.00026916,2]
[328180363,1717014646412,-500.0,0.00026916,2]
[328180364,1717014646421,-500.0,0.00026916,2]
[328180365,1717014646430,-500.0,0.00026916,2]
[328180366,1717014646439,-191.91194331,0.00026916,2]
[328180367,1717014646448,-500.0,0.00026916,2]
[328180368,1717014646457,-500.0,0.00026916,2]
[328180369,1717014646467,-500.0,0.00026916,2]
[328180370,1717014646476,-263.28465385,0.00026916,2]
[328180371,1717014646485,-352.71240175,0.00026916,2]
[328180372,1717014646495,-2991.38827192,0.00026917,2]
[328180373,1717014646504,-3161.64986713,0.00026917,2]
[328180374,1717014646514,-319.7368961,0.00027006,2]
[328180375,1717014646523,-319.7368961,0.00027185,2]
[328180376,1717014646533,-152.41609311,0.00027252,2]
[328180377,1717014646542,-152.41609311,0.00027278,2]
[328180378,1717014646551,-152.41609311,0.00027336,2]
[328180379,1717014646560,-192.19542999,0.00027397,2]
[328180380,1717014646570,-500.0,0.00027397,2]
[328180381,1717014646580,-500.0,0.00027397,2]
[328180382,1717014646589,-273.15289934,0.00027397,2]
[328180383,1717014646598,-152.64,0.000274,3]
[328180384,1717014646609,-152.64,0.000274,3]
[328180386,1717014646618,-152.64,0.000274,3]
[328180388,1717014646628,-152.64,0.000274,3]
[328180390,1717014646637,-152.64,0.000274,3]
[328180392,1717014646647,-152.41609311,0.00027574,2]
[328180394,1717014646657,-157.4490965,0.00027671,2]
[328180396,1717014646666,-163.803839,0.00027671,2]
[328180398,1717014646676,-152.41609311,0.00027952,2]
[328180400,1717014646686,-152.41609311,0.00027962,2]
[328180402,1717014646695,-221.8508194,0.00028,2]
[328180404,1717014646704,-153.0,0.00028147,2]
[328180406,1717014646714,-152.41609311,0.00028217,2]
[328180407,1717014646723,-151.0,0.00028344,2]
[328180409,1717014646732,-411.798816,0.00028344,2]
[328180411,1717014646742,-235.243106,0.00028344,2]
[328180412,1717014646751,-411.798816,0.00028344,2]
[328180413,1717014646760,-235.243106,0.00028344,2]
[328180414,1717014646769,-392.048181,0.00028344,2]
[328180415,1717014646779,-392.048181,0.00028344,2]
[328180416,1717014646789,-152.224301,0.00028355,2]
[328180417,1717014646798,-153.930008,0.00028355,2]
[328180418,1717014646808,-151.0,0.00028355,2]
[328180419,1717014646817,-153.930008,0.00028355,2]
[328180420,1717014646827,-704.748735,0.00028355,2]
[328180421,1717014646836,-704.748735,0.00028355,2]
[328180422,1717014646845,-151.207978,0.00028355,2]
[328180423,1717014646856,-151.0,0.00028355,2]
[328180424,1717014646866,-299.30117,0.00028355,2]
[328180425,1717014646876,-299.30117,0.00028355,2]
[328180426,1717014646888,-151.0,0.00028365,2]
[328180427,1717014646899,-151.0,0.00028365,2]
[328180428,1717014646909,-151.0,0.00028365,2]
[328180429,1717014646919,-151.0,0.00028365,2]
[328180430,1717014646928,-151.0,0.00028365,2]
[328180431,1717014646937,-151.0,0.00028365,2]
[328180432,1717014646947,-152.41609311,0.00028568,2]
[328180433,1717014646956,-152.41609311,0.00028591,2]
[328180434,1717014646965,-271.91678837,0.000289,2]
[328180435,1717014646974,-157.4490965,0.00028965,2]
[328180436,1717014646985,-152.64,0.000292,3]
[328180437,1717014646994,-152.64,0.000292,3]
[328180438,1717014647003,-152.64,0.000292,3]
[328180439,1717014647013,-152.64,0.000292,3]
[328180440,1717014647024,-152.64,0.000292,3]
[328180441,1717014647034,-156.04288688,0.00029217,2]
[328180442,1717014647043,-152.41609311,0.00029342,2]
[328180443,1717014647052,-319.7368961,0.00029383,2]
[328180444,1717014647066,-152.41609311,0.00029405,2]
[328180445,1717014647077,-151.0,0.00029459,2]
[328180446,1717014647086,-331.541309,0.00029459,2]
[328180447,1717014647096,-331.541309,0.00029459,2]
[328180448,1717014647107,-362.764155,0.00029459,2]
[328180449,1717014647116,-362.764155,0.00029459,2]
[328180450,1717014647125,-151.0,0.00029459,2]
[328180451,1717014647137,-411.798816,0.00029459,2]
[328180452,1717014647147,-235.243106,0.00029459,2]
[328180453,1717014647157,-411.798816,0.00029459,2]
[328180454,1717014647166,-235.243106,0.00029459,2]
[328180455,1717014647177,-392.048181,0.00029459,2]
[328180456,1717014647187,-392.048181,0.00029459,2]
[328180457,1717014647196,-319.7368961,0.00029564,2]
[328180458,1717014647206,-150.5289609,0.00029699,2]
[328180459,1717014647216,-152.41609311,0.00029793,2]
[328180460,1717014647227,-151.0,0.000298,2]
[328180461,1717014647237,-151.0,0.000298,2]
[328180462,1717014647247,-151.0,0.000298,2]
[328180463,1717014647257,-272.124724,0.000298,2]
[328180464,1717014647270,-151.0,0.000298,2]
[328180465,1717014647279,-282.119892,0.000298,2]
[328180466,1717014647289,-151.0,0.0002981,2]
[328180467,1717014647298,-151.0,0.0002981,2]
[328180468,1717014647307,-151.0,0.0002981,2]
[328180469,1717014647316,-228.81451,0.0002981,2]
[328180470,1717014647326,-151.0,0.0002981,2]
[328180471,1717014647335,-151.0,0.0002981,2]
[328180472,1717014647344,-495.527342,0.00029821,2]
[328180473,1717014647353,-495.527342,0.00029821,2]
[328180474,1717014647362,-348.030842,0.00029821,2]
[328180475,1717014647372,-348.030842,0.00029821,2]
[328180476,1717014647381,-319.7368961,0.00029821,2]
[328180477,1717014647391,-151.0,0.00029843,2]
[328180478,1717014647401,-151.52173,0.00029843,2]
[328180479,1717014647412,-690.42206577,0.00029853,2]
[328180480,1717014647424,-343.74481685,0.00029853,2]
[328180481,1717014647434,-151.0,0.00029853,2]
[328180482,1717014647444,-237.721567,0.00029853,2]
[328180483,1717014647455,-151.0,0.00029853,2]
[328180484,1717014647464,-151.0,0.00029853,2]
[328180485,1717014647473,-237.28591342,0.00029854,2]
[328180486,1717014647483,-1796.94129137,0.00029854,2]
[328180487,1717014647492,-563.36726574,0.00029854,2]
[328180488,1717014647502,-151.0,0.00029854,2]
[328180489,1717014647511,-151.0,0.00029854,2]
[328180490,1717014647520,-244.760499,0.00029854,2]
[328180491,1717014647530,-151.0,0.00029854,2]
[328180492,1717014647540,-427.581221,0.00029854,2]
[328180493,1717014647550,-427.581221,0.00029854,2]
[328180494,1717014647559,-787.9176367,0.00029855,7]
[328180495,1717014647568,-3132.07717246,0.00029855,2]
[328180496,1717014647579,-223.384358,0.0002989,2]
[328180497,1717014647588,-223.384358,0.0002989,2]
[328180498,1717014647597,-151.0,0.0002989,2]
[328180499,1717014647607,-20468.53,0.0002989,3]
[328180500,1717014647616,-7113.89319345,0.000299,2]
[328180501,1717014739613,371.81130833,9.999e-05,2]
[328180507,1717015266386,529.26882942,9.997e-05,2]
[328180508,1717015293201,514.49757357,9.997e-05,2]
[328180509,1717015402629,154.87609912,9.997e-05,2]
[328180510,1717015420634,154.90705268,9.997e-05,2]
[328180511,1717015495795,371.81130833,9.997e-05,2]
[328180512,1717015538032,5947.65828415,9.997e-05,2]
[328180513,1717015595704,223.85665917,9.997e-05,2]
[328180515,1717015631115,-524.66216611,9.998e-05,2]
[328180516,1717015631135,-160.80712366,9.999e-05,2]
[328180517,1717015631155,-944.07185449,0.00019168,2]
[328180518,1717015631174,-1098.62540245,0.00019169,2]
[328180519,1717015631193,-109.96751578,0.0001917,2]
[328180544,1717015832185,-1034.0194,0.0001917,2]
[328180545,1717015832198,-1856.01308422,0.0001917,2]
[328180546,1717015832207,-2024.37365758,0.0001917,2]
[328180547,1717015832228,-309.07350324,0.0001917,2]
[328180548,1717015832237,-155.08139107,0.0001917,2]
[328180550,1717015832246,-164.793736,0.00020784,2]
[328180552,1717015832255,-154.95351395,0.000211,2]
[328180554,1717015832264,-918.57742252,0.000211,2]
[328180556,1717015832274,-943.50728599,0.000211,2]
[328180558,1717015832283,-531.91312356,0.000211,2]
[328180560,1717015832292,-165.23817571,0.000211,2]
[328180562,1717015832301,-917.08791391,0.00021101,2]
[328180564,1717015832310,-22157.70487658,0.00021102,2]
[328180608,1717015838168,-299.421078,0.00023545,2]
[328180610,1717015838178,-691.03459692,0.00023545,2]
[328180612,1717015838188,-284.01585024,0.00023545,2]
[328180614,1717015838198,-302.61666796,0.00023545,2]
[328180616,1717015838208,-1793.6478333,0.00023545,2]
[328180618,1717015838221,-888.24553809,0.00023545,2]
[328180621,1717015838233,-343.37471057,0.00023545,2]
[328180917,1717015841701,-486.77477283,0.00023545,2]
[328180919,1717015841712,-299.02846501,0.00023545,2]
[328180921,1717015841723,-2830.62157861,0.00023545,7]
[328180923,1717015841734,-399.42758,0.00023545,2]
[328180926,1717015841746,-529.56581307,0.00023545,2]
[328180928,1717015841757,-602.69175449,0.00023545,2]
[328180930,1717015841768,-523.24502154,0.00023545,2]
[328180932,1717015841779,-1066.84501445,0.00023546,2]
[328181192,1717015843483,-433.32361627,0.00023546,2]
[328181194,1717015843494,-669.396177,0.00024384,2]
[328181196,1717015843504,-999.35100874,0.00026574,2]
[328181198,1717015843520,-10679.09345394,0.00026574,2]
[328181201,1717015843531,-418.83233688,0.000266,2]
[328181527,1717015846247,-342.6992208,0.000266,2]
[328181529,1717015846257,-226.53462177,0.00026743,2]
[328181831,1717015897750,239.12476103,9.999e-05,2]
[328181834,1717016594961,250.92574795,9.899e-05,2]
[328181836,1717016852136,-551.40633265,9.999e-05,2]
[328181837,1717016852157,-1137.98739382,0.0001,2]
[328181838,1717016852177,-944.07185449,0.00017891,2]
[328181839,1717016852199,-1098.62540245,0.00017892,2]
[328181840,1717016852218,-2087.06319613,0.00017898,2]
[328181878,1717017032461,-768.51793347,0.00016933,2]
[328181880,1717017032473,-432.59569552,0.00017898,2]
[328181882,1717017032483,-459.54675454,0.00017898,2]
[328181884,1717017032492,-161.30218932,0.000189,2]
[328181886,1717017032502,-2069.03664064,0.00021576,2]
[328181888,1717017032511,-860.196964,0.00021577,2]
[328181890,1717017032521,-176.7101551,0.00022577,2]
[328181892,1717017032531,-943.50728599,0.00022577,2]
[328181894,1717017032540,-568.89472083,0.00022577,2]
[328181896,1717017032550,-156.68308505,0.00022577,2]
[328181898,1717017032559,-156.87701235,0.00022577,2]
[328181900,1717017032568,-175.72514253,0.00022577,2]
[328181902,1717017032577,-1900.31793063,0.00022578,2]
[328181904,1717017032587,-21535.39157849,0.00022579,2]
[328181906,1717017032598,-1614.26312249,0.00022579,2]
[328182091,1717017038418,-1750.34529902,0.00022579,2]
[328182093,1717017038428,-641.01144387,0.00022711,2]
[328182095,1717017038437,-258.18643222,0.00022711,2]
[328182097,1717017038446,-3000.0,0.00022712,2]
[328182099,1717017038456,-161.30218932,0.000239,2]
[328182101,1717017038465,-5000.0,0.00024,2]
[328182103,1717017038474,-162.418185,0.00024022,2]
[328182105,1717017038483,-256.48109456,0.00024067,2]
[328182107,1717017038493,-1244.53997035,0.00024374,2]
[328182109,1717017038502,-157.45445,0.00024384,2]
[328182111,1717017038512,-635.926368,0.00024384,2]
[328182113,1717017038521,-221.67488627,0.00024416,2]
[328182115,1717017038531,-522.22886781,0.00024416,2]
[328182117,1717017038540,-811.23498524,0.00024416,2]
[328182119,1717017038549,-3744.29213568,0.00024416,2]
[328182121,1717017038559,-1153.28512896,0.00024416,2]
[328182123,1717017038568,-4521.26016877,0.00026,2]
[328182125,1717017038577,-4229.78307947,0.00026411,2]
[328182127,1717017038586,-496.0,0.00026432,2]
[328182129,1717017038595,-761.53155768,0.000266,2]
[328182131,1717017038604,-223.7633849,0.0002664,2]
[328182133,1717017038613,-500.0,0.00026641,2]
[328182135,1717017038623,-327.12199451,0.00026641,2]
[328182137,1717017038632,-500.0,0.00026641,2]
[328182139,1717017038641,-373.58457933,0.00026641,2]
[328182141,1717017038654,-433.30062254,0.00026641,2]
[328182143,1717017038666,-66.69937746,0.00026641,2]
[328182145,1717017038675,-408.27796845,0.00026641,2]
[328182147,1717017038684,-500.0,0.00026641,2]
[328182149,1717017038694,-500.0,0.00026641,2]
[328182151,1717017038703,-500.0,0.00026641,2]
[328182153,1717017038712,-500.0,0.00026641,2]
[328182155,1717017038722,-500.0,0.00026641,2]
[328182157,1717017038731,-500.0,0.00026641,2]
[328182159,1717017038740,-165.39420866,0.00026641,2]
[328182161,1717017038749,-500.0,0.00026641,2]
[328182163,1717017038758,-500.0,0.00026641,2]
[328182165,1717017038767,-296.353764,0.00026641,2]
[328182167,1717017038777,-78.38786351,0.00026641,2]
[328182266,1717017041824,-290.87727374,0.00026641,2]
[328182268,1717017041834,-21.38602626,0.00026641,2]
[328182270,1717017041845,-478.61397374,0.00026641,2]
[328182272,1717017041855,-500.0,0.00026641,2]
[328182274,1717017041865,-500.0,0.00026641,2]
[328182276,1717017041875,-500.0,0.00026641,2]
[328182278,1717017041884,-479.31658051,0.00026641,2]
[328182280,1717017041900,-20.68341949,0.00026641,2]
[328182283,1717017041910,-500.0,0.00026641,2]
[328182284,1717017041919,-500.0,0.00026641,2]
[328182286,1717017041929,-500.0,0.00026641,2]
[328182288,1717017041938,-500.0,0.00026641,2]
[328182290,1717017041947,-500.0,0.00026641,2]
[328182292,1717017041956,-500.0,0.00026641,2]
[328182294,1717017041966,-500.0,0.00026641,2]
[328182296,1717017041975,-500.0,0.00026641,2]
[328182298,1717017041984,-500.0,0.00026641,2]
[328182301,1717017041994,-500.0,0.00026641,2]
[328182302,1717017042004,-500.0,0.00026641,2]
[328182304,1717017042013,-500.0,0.00026641,2]
[328182306,1717017042023,-500.0,0.00026641,2]
[328182308,1717017042041,-500.0,0.00026641,2]
[328182310,1717017042053,-500.0,0.00026641,2]
[328182312,1717017042063,-500.0,0.00026641,2]
[328182313,1717017042073,-500.0,0.00026641,2]
[328182314,1717017042083,-500.0,0.00026641,2]
[328182315,1717017042093,-500.0,0.00026641,2]
[328182316,1717017042103,-500.0,0.00026641,2]
[328182317,1717017042113,-500.0,0.00026641,2]
[328182318,1717017042123,-556.9,0.00026642,3]
[328182319,1717017042134,-9304.54,0.00026642,3]
[328182320,1717017042144,-185.62,0.00026652,3]
[328182321,1717017042156,-17228.45,0.00026652,3]
[328182322,1717017042166,-14357.04,0.00026652,3]
[328182323,1717017042175,-151.0,0.00026662,2]
[328182324,1717017042184,-151.0,0.00026662,2]
[328182325,1717017042194,-151.0,0.00026662,2]
[328182326,1717017042204,-151.0,0.00026662,2]
[328182327,1717017042214,-151.0,0.00026662,2]
[328182328,1717017042224,-151.0,0.00026662,2]
[328182329,1717017042234,-445.223099,0.00026662,2]
[328182330,1717017042243,-445.223099,0.00026662,2]
[328182331,1717017042253,-445.223099,0.00026662,2]
[328182332,1717017042263,-445.223099,0.00026662,2]
[328182333,1717017042272,-151.0,0.00026662,2]
[328182334,1717017042282,-151.0,0.00026662,2]
[328182335,1717017042292,-370.177786,0.00026662,2]
[328182336,1717017042301,-370.177786,0.00026662,2]
[328182337,1717017042311,-370.177786,0.00026662,2]
[328182338,1717017042321,-370.177786,0.00026662,2]
[328182339,1717017042331,-151.0,0.00026662,2]
[328182340,1717017042341,-151.0,0.00026662,2]
[328182341,1717017042350,-211.326772,0.00026662,2]
[328182342,1717017042360,-211.326772,0.00026662,2]
[328182343,1717017042370,-151.0,0.00026673,2]
[328182344,1717017042379,-151.0,0.00026673,2]
[328182345,1717017042389,-445.223099,0.00026673,2]
[328182346,1717017042400,-445.223099,0.00026673,2]
[328182347,1717017042410,-151.0,0.00026673,2]
[328182348,1717017042419,-370.177786,0.00026673,2]
[328182349,1717017042428,-370.177786,0.00026673,2]
[328182350,1717017042438,-525.739663,0.00026683,2]
[328182351,1717017042447,-525.739663,0.00026683,2]
[328182352,1717017042457,-525.739663,0.00026683,2]
[328182353,1717017042466,-525.739663,0.00026683,2]
[328182354,1717017042476,-151.0,0.00026683,2]
[328182355,1717017042486,-151.0,0.00026683,2]
[328182356,1717017042495,-1072.557528,0.00026683,2]
[328182357,1717017042505,-1072.557528,0.00026683,2]
[328182358,1717017042515,-151.0,0.00026683,2]
[328182359,1717017042524,-151.0,0.00026683,2]
[328182360,1717017042534,-1072.557528,0.00026683,2]
[328182361,1717017042543,-1072.557528,0.00026683,2]
[328182362,1717017042553,-151.0,0.00026683,2]
[328182363,1717017042563,-374.038545,0.00026683,2]
[328182364,1717017042572,-374.038545,0.00026683,2]
[328182365,1717017042582,-374.038545,0.00026683,2]
[328182366,1717017042591,-374.038545,0.00026683,2]
[328182367,1717017042601,-151.0,0.00026683,2]
[328182368,1717017042610,-151.0,0.00026683,2]
[328182369,1717017042620,-152.130202,0.00026683,2]
[328182370,1717017042629,-648.733563,0.00026683,2]
[328182371,1717017042639,-648.733563,0.00026683,2]
[328182372,1717017042650,-648.733563,0.00026683,2]
[328182373,1717017042660,-648.733563,0.00026683,2]
[328182374,1717017042669,-648.733563,0.00026683,2]
[328182375,1717017042679,-648.733563,0.00026683,2]
[328182376,1717017042689,-648.733563,0.00026683,2]
[328182377,1717017042699,-648.733563,0.00026683,2]
[328182378,1717017042708,-188.194485,0.00026683,2]
[328182379,1717017042717,-188.194485,0.00026683,2]
[328182380,1717017042727,-188.194485,0.00026683,2]
[328182381,1717017042736,-188.194485,0.00026683,2]
[328182382,1717017042745,-188.194485,0.00026683,2]
[328182383,1717017042754,-188.194485,0.00026683,2]
[328182384,1717017042764,-188.194485,0.00026683,2]
[328182385,1717017042773,-188.194485,0.00026683,2]
[328182386,1717017042782,-151.0,0.00026683,2]
[328182387,1717017042792,-211.326772,0.00026683,2]
[328182388,1717017042801,-151.0,0.00026684,2]
[328182389,1717017042814,-151.0,0.00026684,2]
[328182390,1717017042823,-445.223099,0.00026684,2]
[328182391,1717017042833,-445.223099,0.00026684,2]
[328182392,1717017042842,-151.0,0.00026684,2]
[328182393,1717017042853,-370.177786,0.00026684,2]
[328182394,1717017042863,-370.177786,0.00026684,2]
[328182395,1717017042872,-151.0,0.00026694,2]
[328182396,1717017042892,-155.424899,0.00026694,2]
[328182397,1717017042909,-151.0,0.00026694,2]
[328182398,1717017042922,-151.0,0.00026694,2]
[328182399,1717017042935,-151.0,0.00026694,2]
[328182400,1717017042950,-151.0,0.00026694,2]
[328182401,1717017042960,-151.0,0.00026694,2]
[328182402,1717017042971,-151.0,0.00026694,2]
[328182403,1717017042985,-151.0,0.00026694,2]
[328182404,1717017042997,-151.0,0.00026694,2]
[328182405,1717017043009,-151.0,0.00026694,2]
[328182406,1717017043022,-151.0,0.00026694,2]
[328182407,1717017043034,-151.0,0.00026694,2]
[328182408,1717017043049,-151.0,0.00026694,2]
[328182410,1717017043061,-151.0,0.00026694,2]
[328182413,1717017043074,-151.0,0.00026694,2]
[328182415,1717017043088,-223.867962,0.00026694,2]
[328182416,1717017043101,-223.7633849,0.00026699,2]
[328182417,1717017043114,-11964.2,0.00026705,3]
[328182420,1717017043126,-810.440657,0.00026715,2]
[328182422,1717017043137,-810.440657,0.00026715,2]
[328182423,1717017043152,-810.440657,0.00026715,2]
[328182424,1717017043166,-810.440657,0.00026715,2]
[328182426,1717017043178,-151.0,0.00026715,2]
[328182427,1717017043191,-366.077758,0.00026715,2]
[328182428,1717017043204,-151.0,0.00026715,2]
[328182429,1717017043215,-366.077758,0.00026715,2]
[328182430,1717017043227,-151.0,0.00026715,2]
[328182431,1717017043238,-366.077758,0.00026715,2]
[328182432,1717017043248,-366.077758,0.00026715,2]
[328182433,1717017043258,-366.077758,0.00026715,2]
[328182434,1717017043271,-366.077758,0.00026715,2]
[328182435,1717017043281,-412.422542,0.00026715,2]
[328182436,1717017043294,-412.422542,0.00026715,2]
[328182437,1717017043307,-412.422542,0.00026715,2]
[328182438,1717017043319,-412.422542,0.00026715,2]
[328182439,1717017043331,-412.422542,0.00026715,2]
[328182440,1717017043341,-412.422542,0.00026715,2]
[328182441,1717017043354,-151.0,0.00026715,2]
[328182442,1717017043367,-151.0,0.00026715,2]
[328182443,1717017043379,-151.0,0.00026715,2]
[328182445,1717017043392,-291.226236,0.00026715,2]
[328182446,1717017043406,-525.739663,0.00026715,2]
[328182447,1717017043416,-525.739663,0.00026715,2]
[328182448,1717017043425,-151.0,0.00026715,2]
[328182449,1717017043435,-1072.557528,0.00026715,2]
[328182450,1717017043445,-151.0,0.00026715,2]
[328182451,1717017043456,-1072.557528,0.00026715,2]
[328182452,1717017043468,-374.038545,0.00026715,2]
[328182453,1717017043480,-374.038545,0.00026715,2]
[328182454,1717017043492,-151.0,0.00026715,2]
[328182455,1717017043505,-648.733563,0.00026715,2]
[328182456,1717017043514,-648.733563,0.00026715,2]
[328182457,1717017043525,-188.194485,0.00026715,2]
[328182458,1717017043536,-188.194485,0.00026715,2]
[328182459,1717017043547,-151.0,0.00026715,2]
[328182460,1717017043559,-445.223099,0.00026715,2]
[328182461,1717017043572,-445.223099,0.00026715,2]
[328182462,1717017043584,-370.177786,0.00026715,2]
[328182463,1717017043595,-370.177786,0.00026715,2]
[328182464,1717017043606,-151.0,0.00026715,2]
[328182465,1717017043616,-160.658474,0.00026715,2]
[328182466,1717017043626,-211.326772,0.00026715,2]
[328182467,1717017043637,-211.326772,0.00026715,2]
[328182468,1717017043649,-151.0,0.00026716,2]
[328182469,1717017043660,-151.0,0.00026716,2]
[328182470,1717017043673,-151.0,0.00026716,2]
[328182471,1717017043684,-520.81611433,0.00026726,2]
[328182472,1717017043696,-151.0,0.00026726,2]
[328182473,1717017043707,-151.0,0.00026726,2]
[328182474,1717017043720,-151.0,0.00026726,2]
[328182475,1717017043731,-151.0,0.00026726,2]
[328182476,1717017043743,-223.636468,0.00026726,2]
[328182477,1717017043754,-223.636468,0.00026726,2]
[328182478,1717017043765,-223.636468,0.00026726,2]
[328182479,1717017043776,-223.636468,0.00026726,2]
[328182480,1717017043788,-223.636468,0.00026726,2]